fUST/lending_fUST_20240226
["ID","MTS","AMOUNT","RATE_DAILY","PERIOD"]
[315208987,1708935046679,-4344.96,0.00019726,2]
[315208988,1708935046689,-500.0,0.00019726,2]
[315208989,1708935046698,-500.0,0.00019726,2]
[315208990,1708935046708,-487.01483259,0.00019726,2]
[315208991,1708935046718,-500.0,0.00019726,2]
[315208992,1708935046728,-500.0,0.00019726,2]
[315208993,1708935046738,-500.0,0.00019726,2]
[315208994,1708935046747,-500.0,0.00019726,2]
[315208995,1708935046758,-500.0,0.00019726,2]
[315208996,1708935046767,-238.35007482,0.00019726,2]
[315208997,1708935046776,-500.0,0.00019726,2]
[315208998,1708935046785,-501.65704131,0.00019726,2]
[315208999,1708935046795,-2282.25,0.00019726,2]
[315209000,1708935046804,-2291.28,0.00019726,2]
[315209001,1708935046813,-500.0,0.00019726,2]
[315209002,1708935046822,-500.0,0.00019726,2]
[315209003,1708935046831,-500.0,0.00019726,2]
[315209004,1708935046840,-151.0,0.00019726,2]
[315209005,1708935046849,-500.0,0.00019726,2]
[315209006,1708935046858,-436.52101816,0.00019726,2]
[315209007,1708935046868,-866.2,0.00019726,2]
[315209008,1708935046877,-500.0,0.00019726,2]
[315209009,1708935046887,-1799.84,0.00019726,2]
[315209010,1708935046896,-678.73,0.00019726,2]
[315209011,1708935046905,-500.0,0.00019726,2]
[315209012,1708935046915,-2514.37,0.00019726,2]
[315209013,1708935046925,-500.0,0.00019726,2]
[315209014,1708935046934,-507.00886275,0.00019726,2]
[315209015,1708935046943,-151.0,0.00019726,2]
[315209016,1708935046953,-151.0,0.00019726,2]
[315209017,1708935046962,-151.0,0.00019726,2]
[315209018,1708935046971,-151.0,0.00019726,2]
[315209019,1708935046980,-500.0,0.00019726,2]
[315209020,1708935046989,-500.0,0.00019726,2]
[315209021,1708935047000,-500.0,0.00019726,2]
[315209022,1708935047010,-8196.53,0.00019726,2]
[315209023,1708935047019,-3587.74,0.00019726,2]
[315209024,1708935047028,-500.0,0.00019726,2]
[315209025,1708935047038,-500.0,0.00019726,2]
[315209026,1708935047047,-868.21,0.00019726,2]
[315209027,1708935047056,-22658.04,0.00019726,2]
[315209028,1708935047065,-1527.13,0.00019726,2]
[315209029,1708935047075,-500.0,0.00019726,2]
[315209030,1708935047084,-663.91,0.00019726,2]
[315209031,1708935047093,-3384.81215469,0.00019768,2]
[315209032,1708935047102,-200.5826354,0.000198,2]
[315209033,1708935047111,-300.0,0.00019854,2]
[315209034,1708935047121,-3384.81215469,0.00019909,2]
[315209035,1708935047130,-240.7634129,0.00019918,2]
[315209036,1708935047141,-153.0,0.00019918,2]
[315209037,1708935047150,-153.0,0.00019918,2]
[315209038,1708935047159,-205.517,0.0001997,2]
[315209039,1708935047167,-5337.30879984,0.00019975,2]
[315209040,1708935047176,-300.0,0.00019982,2]
[315209041,1708935047186,-641.27,0.00019997,2]
[315209042,1708935047194,-289.88358592,0.00019998,2]
[315209043,1708935047204,-702.0990051,0.00019999,2]
[315209044,1708935047213,-156.352017,0.00019999,2]
[315209045,1708935047223,-641.27,0.00019999,2]
[315209046,1708935047232,-641.27,0.00019999,2]
[315209047,1708935047242,-641.27,0.00019999,2]
[315209048,1708935047250,-500.0,0.0002,2]
[315209049,1708935047260,-619.10188517,0.0002,2]
[315209050,1708935047269,-500.0,0.0002,2]
[315209051,1708935047279,-500.0,0.0002,2]
[315209052,1708935047288,-347.36812482,0.0002,2]
[315209053,1708935047297,-259.9324532,0.0002,2]
[315209054,1708935047306,-500.0,0.0002,2]
[315209055,1708935047315,-1236.28,0.0002,2]
[315209056,1708935047324,-500.0,0.0002,2]
[315209057,1708935047333,-500.0,0.0002,2]
[315209058,1708935047343,-500.0,0.0002,2]
[315209059,1708935047351,-500.0,0.0002,2]
[315209060,1708935047361,-500.0,0.0002,2]
[315209061,1708935047373,-500.0,0.0002,2]
[315209062,1708935047383,-1671.11,0.0002,2]
[315209063,1708935047393,-738.31,0.0002,2]
[315209064,1708935047402,-500.0,0.0002,2]
[315209065,1708935047412,-630.35,0.0002,2]
[315209066,1708935047421,-500.0,0.0002,2]
[315209067,1708935047430,-500.0,0.0002,2]
[315209068,1708935047440,-1669.61,0.0002,2]
[315209069,1708935047457,-500.0,0.0002,2]
[315209070,1708935047466,-500.0,0.0002,2]
[315209071,1708935047475,-583.9,0.0002,2]
[315209072,1708935047485,-500.0,0.0002,2]
[315209073,1708935047494,-500.0,0.0002,2]
[315209074,1708935047503,-500.0,0.0002,2]
[315209075,1708935047512,-44.54978791,0.0002,2]
[315209076,1708935047659,-455.45021209,0.0002,2]
[315209077,1708935047669,-557.78269521,0.0002,2]
[315209078,1708935047678,-507.2110053,0.0002,2]
[315209079,1708935047687,-500.0,0.0002,2]
[315209080,1708935047696,-500.0,0.0002,2]
[315209081,1708935047706,-500.0,0.0002,2]
[315209082,1708935047715,-2184.79,0.0002,2]
[315209083,1708935047724,-502.28118621,0.0002,2]
[315209084,1708935047733,-505.12852291,0.0002,2]
[315209085,1708935047742,-610.448442,0.0002,2]
[315209086,1708935047751,-500.0,0.0002,2]
[315209087,1708935047760,-1773.94,0.0002,2]
[315209088,1708935047769,-338.91589306,0.0002,2]
[315209089,1708935047778,-500.0,0.0002,2]
[315209090,1708935047786,-500.0,0.0002,2]
[315209091,1708935047795,-500.0,0.0002,2]
[315209092,1708935047804,-500.0,0.0002,2]
[315209093,1708935047813,-500.0,0.0002,2]
[315209094,1708935047822,-151.0,0.0002,2]
[315209095,1708935047831,-151.0,0.0002,2]
[315209096,1708935047840,-26.21487657,0.0002,2]
[315209097,1708935048250,-288.57936878,0.00019722,2]
[315209098,1708935048261,-211.42063122,0.00019722,2]
[315209099,1708935048273,-500.0,0.00019722,2]
[315209100,1708935048305,-500.0,0.00019722,2]
[315209101,1708935048314,-500.0,0.00019722,2]
[315209102,1708935048322,-500.0,0.00019722,2]
[315209103,1708935048331,-500.0,0.00019722,2]
[315209104,1708935048340,-500.0,0.00019722,2]
[315209105,1708935048348,-500.0,0.00019722,2]
[315209106,1708935048357,-500.0,0.00019722,2]
[315209107,1708935048366,-500.0,0.00019722,2]
[315209108,1708935048375,-500.0,0.00019722,2]
[315209109,1708935048384,-500.0,0.00019722,2]
[315209110,1708935048393,-500.0,0.00019722,2]
[315209111,1708935048402,-500.0,0.00019722,2]
[315209112,1708935048410,-500.0,0.00019722,2]
[315209113,1708935048419,-500.0,0.00019722,2]
[315209114,1708935048428,-500.0,0.00019722,2]
[315209115,1708935048530,-500.0,0.00019722,2]
[315209116,1708935048539,-500.0,0.00019722,2]
[315209117,1708935048548,-500.0,0.00019722,2]
[315209118,1708935048557,-493.89838306,0.00019722,2]
[315209119,1708935048566,-500.0,0.00019722,2]
[315209120,1708935048574,-473.78512343,0.0002,2]
[315209121,1708935048583,-500.0,0.0002,2]
[315209122,1708935048592,-500.0,0.0002,2]
[315209123,1708935048601,-553.1,0.0002,2]
[315209124,1708935048610,-1055.24,0.0002,2]
[315209125,1708935048619,-500.0,0.0002,2]
[315209126,1708935048629,-500.0,0.0002,2]
[315209127,1708935048637,-500.0,0.0002,2]
[315209128,1708935048646,-906.806315,0.0002,2]
[315209129,1708935048655,-906.806315,0.0002,2]
[315209130,1708935048664,-119.31165967,0.0002,2]
[315209241,1708936237717,-428.36024684,0.0001784,2]
[315209242,1708936237727,-394.871379,0.00017841,2]
[315209243,1708936237736,-250.0,0.00017874,2]
[315209244,1708936237746,-24900.0,0.00017941,2]
[315209245,1708936237755,-172.93049178,0.00019078,2]
[315209246,1708936237764,-411.72,0.00019168,3]
[315209247,1708936237773,-500.0,0.00019178,2]
[315209248,1708936237782,-500.0,0.00019178,2]
[315209250,1708936237791,-500.0,0.00019178,2]
[315209251,1708936237800,-501.82744386,0.00019178,2]
[315209252,1708936237809,-500.0,0.00019178,2]
[315209253,1708936237818,-728.38,0.00019178,2]
[315209254,1708936237827,-500.86160796,0.00019178,2]
[315209255,1708936237836,-500.0,0.00019178,2]
[315209256,1708936237845,-501.15891144,0.00019178,2]
[315209257,1708936237855,-287.69325994,0.00019178,2]
[315209258,1708936237864,-500.0,0.00019178,2]
[315209259,1708936237873,-500.0,0.00019178,2]
[315209260,1708936237882,-500.0,0.00019178,2]
[315209261,1708936237891,-500.0,0.00019178,2]
[315209262,1708936237900,-503.13338535,0.00019178,2]
[315209263,1708936237909,-500.0,0.00019178,2]
[315209264,1708936237918,-580.4,0.00019178,2]
[315209265,1708936237927,-500.0,0.00019178,2]
[315209266,1708936237935,-504.12794573,0.00019178,2]
[315209267,1708936237944,-607.75992688,0.00019178,2]
[315209268,1708936237953,-500.0,0.00019178,2]
[315209269,1708936237962,-500.0,0.00019178,2]
[315209270,1708936237971,-500.0,0.00019178,2]
[315209271,1708936237980,-500.0,0.00019178,2]
[315209272,1708936237989,-500.0,0.00019178,2]
[315209273,1708936237998,-500.0,0.00019178,2]
[315209274,1708936238006,-500.0,0.00019178,2]
[315209275,1708936238015,-500.76681216,0.00019178,2]
[315209276,1708936238024,-500.0,0.00019178,2]
[315209277,1708936238033,-500.0,0.00019178,2]
[315209278,1708936238043,-500.3462092,0.00019178,2]
[315209279,1708936238052,-359.8403748,0.00019178,2]
[315209280,1708936238061,-501.0884164,0.00019178,2]
[315209281,1708936238070,-500.0,0.00019178,2]
[315209282,1708936238079,-234.57397735,0.00019178,2]
[315209283,1708936238088,-500.0,0.00019178,2]
[315209284,1708936238097,-500.0,0.00019178,2]
[315209285,1708936238106,-500.0,0.00019178,2]
[315209286,1708936238115,-500.58116796,0.00019178,2]
[315209287,1708936238124,-500.0,0.00019178,2]
[315209288,1708936238133,-500.0,0.00019178,2]
[315209289,1708936238142,-500.0,0.00019178,2]
[315209290,1708936238151,-175.10182328,0.00019178,2]
[315209291,1708936238160,-500.0,0.00019178,2]
[315209292,1708936238169,-500.0,0.00019178,2]
[315209293,1708936238178,-500.0,0.00019178,2]
[315209294,1708936238187,-266.51557641,0.00019178,2]
[315209295,1708936238196,-500.0,0.00019178,2]
[315209296,1708936238205,-1527.13,0.00019178,2]
[315209297,1708936238215,-500.0,0.00019178,2]
[315209298,1708936238225,-530.06,0.00019178,2]
[315209299,1708936238234,-501.13519098,0.00019178,2]
[315209300,1708936238245,-500.0,0.00019178,2]
[315209301,1708936238255,-151.0,0.00019178,2]
[315209302,1708936238266,-1600.04,0.00019178,2]
[315209303,1708936238275,-624.92,0.00019178,2]
[315209304,1708936238284,-500.0,0.00019178,2]
[315209305,1708936238294,-500.0,0.00019178,2]
[315209306,1708936238303,-500.0,0.00019178,2]
[315209307,1708936238312,-500.0,0.00019178,2]
[315209308,1708936238321,-505.83665894,0.00019178,2]
[315209309,1708936238330,-1488.87,0.00019178,2]
[315209310,1708936238340,-833.88,0.00019178,2]
[315209311,1708936238349,-500.0,0.00019178,2]
[315209312,1708936238359,-500.0,0.00019178,2]
[315209313,1708936238368,-566.16513416,0.00019178,2]
[315209314,1708936238377,-500.0,0.00019178,2]
[315209316,1708936238386,-500.0,0.00019178,2]
[315209318,1708936238396,-500.0,0.00019178,2]
[315209320,1708936238405,-500.0,0.00019178,2]
[315209321,1708936238414,-500.0,0.00019178,2]
[315209322,1708936238423,-500.0,0.00019178,2]
[315209323,1708936238433,-500.0,0.00019178,2]
[315209324,1708936238442,-501.12566577,0.00019178,2]
[315209325,1708936238452,-500.0,0.00019178,2]
[315209326,1708936238461,-588.75636197,0.00019178,2]
[315209327,1708936238470,-1005.8616059,0.00019178,2]
[315209328,1708936238479,-500.0,0.00019178,2]
[315209329,1708936238489,-500.0,0.00019178,2]
[315209330,1708936238498,-500.0,0.00019178,2]
[315209331,1708936238507,-500.0,0.00019178,2]
[315209332,1708936238517,-500.0,0.00019178,2]
[315209333,1708936238525,-500.0,0.00019178,2]
[315209335,1708936238534,-500.0,0.00019178,2]
[315209337,1708936238544,-2093.75,0.00019178,2]
[315209338,1708936238553,-500.89874379,0.00019178,2]
[315209339,1708936238562,-500.87195388,0.00019178,2]
[315209340,1708936238570,-500.0,0.00019178,2]
[315209341,1708936238579,-500.0,0.00019178,2]
[315209342,1708936238589,-500.0,0.00019178,2]
[315209345,1708936238598,-500.0,0.00019178,2]
[315209348,1708936238607,-500.0,0.00019178,2]
[315209350,1708936238616,-500.0,0.00019178,2]
[315209354,1708936238630,-500.0,0.00019178,2]
[315209356,1708936238639,-500.0,0.00019178,2]
[315209358,1708936238648,-511.41656817,0.00019178,2]
[315209360,1708936238657,-501.56333098,0.00019178,2]
[315209361,1708936238666,-500.0,0.00019178,2]
[315209363,1708936238675,-1700.03,0.00019178,2]
[315209365,1708936238684,-566.42558314,0.00019178,2]
[315209367,1708936238693,-500.0,0.00019178,2]
[315209369,1708936238702,-500.0,0.00019178,2]
[315209371,1708936238711,-500.0,0.00019178,2]
[315209373,1708936238720,-500.0,0.00019178,2]
[315209375,1708936238729,-500.0,0.00019178,2]
[315209377,1708936238738,-500.0,0.00019178,2]
[315209379,1708936238747,-500.0,0.00019178,2]
[315209381,1708936238756,-500.0,0.00019178,2]
[315209383,1708936238765,-500.0,0.00019178,2]
[315209385,1708936238774,-500.0,0.00019178,2]
[315209387,1708936238783,-500.0,0.00019178,2]
[315209388,1708936238792,-500.0,0.00019178,2]
[315209391,1708936238804,-500.0,0.00019178,2]
[315209392,1708936238813,-500.0,0.00019178,2]
[315209393,1708936238822,-500.0,0.00019178,2]
[315209394,1708936238831,-500.0,0.00019178,2]
[315209395,1708936238841,-1011.27,0.00019178,2]
[315209396,1708936238850,-500.0,0.00019178,2]
[315209397,1708936238859,-500.0,0.00019178,2]
[315209398,1708936238868,-500.0,0.00019178,2]
[315209399,1708936238877,-312.51592479,0.00019178,2]
[315209400,1708936238886,-500.0,0.00019178,2]
[315209401,1708936238896,-500.0,0.00019178,2]
[315209402,1708936238905,-500.0,0.00019178,2]
[315209403,1708936238914,-500.0,0.00019178,2]
[315209404,1708936238923,-500.0,0.00019178,2]
[315209405,1708936238933,-500.0,0.00019178,2]
[315209406,1708936238942,-500.49222715,0.00019178,2]
[315209407,1708936238951,-500.0,0.00019178,2]
[315209408,1708936238960,-684.74,0.00019178,2]
[315209409,1708936238969,-324.25190158,0.00019178,2]
[315209410,1708936238978,-500.0,0.00019178,2]
[315209411,1708936238987,-500.0,0.00019178,2]
[315209412,1708936238997,-544.80572393,0.00019178,2]
[315209413,1708936239006,-500.0,0.00019178,2]
[315209414,1708936239015,-500.0,0.00019178,2]
[315209415,1708936239024,-500.0,0.00019178,2]
[315209416,1708936239033,-449.10144349,0.00019178,2]
[315209417,1708936239042,-500.0,0.00019178,2]
[315209418,1708936239051,-779.44,0.00019178,2]
[315209419,1708936239061,-4218.31,0.00019178,2]
[315209420,1708936239070,-500.0,0.00019178,2]
[315209421,1708936239079,-500.0,0.00019178,2]
[315209422,1708936239088,-500.0,0.00019178,2]
[315209423,1708936239097,-212.2436076,0.00019178,2]
[315209424,1708936239107,-1467.94,0.00019178,2]
[315209425,1708936239116,-500.0,0.00019178,2]
[315209426,1708936239125,-500.0,0.00019178,2]
[315209427,1708936239134,-500.0,0.00019178,2]
[315209428,1708936239143,-432.44409481,0.00019178,2]
[315209429,1708936239152,-500.0,0.00019178,2]
[315209430,1708936239161,-500.0,0.00019178,2]
[315209431,1708936239170,-2941.06,0.00019178,2]
[315209432,1708936239179,-500.0,0.00019178,2]
[315209433,1708936239188,-752.54,0.00019178,2]
[315209434,1708936239197,-2762.77,0.00019178,2]
[315209435,1708936239206,-502.27989563,0.00019178,2]
[315209436,1708936239215,-500.0,0.00019178,2]
[315209437,1708936239224,-500.0,0.00019178,2]
[315209438,1708936239233,-500.0,0.00019178,2]
[315209439,1708936239242,-1870.84,0.00019178,2]
[315209440,1708936239252,-640.38620748,0.00019178,2]
[315209441,1708936239265,-500.0,0.00019178,2]
[315209442,1708936239274,-500.0,0.00019178,2]
[315209443,1708936239283,-581.87051322,0.00019178,2]
[315209444,1708936239292,-500.0,0.00019178,2]
[315209445,1708936239301,-500.0,0.00019178,2]
[315209446,1708936239310,-1000.0,0.00019178,2]
[315209447,1708936239319,-501.16145419,0.00019178,2]
[315209448,1708936239327,-2590.4,0.00019178,2]
[315209449,1708936239337,-500.0,0.00019178,2]
[315209450,1708936239346,-2123.47,0.00019178,2]
[315209451,1708936239356,-500.0,0.00019178,2]
[315209452,1708936239365,-500.0,0.00019178,2]
[315209453,1708936239374,-500.0,0.00019178,2]
[315209454,1708936239383,-2088.94,0.00019178,2]
[315209455,1708936239392,-500.0,0.00019178,2]
[315209456,1708936239401,-500.0,0.00019178,2]
[315209457,1708936239410,-500.0,0.00019178,2]
[315209458,1708936239419,-249.09722205,0.00019178,2]
[315209459,1708936239428,-500.0,0.00019178,2]
[315209460,1708936239437,-23193.98,0.00019178,2]
[315209461,1708936239447,-500.0,0.00019178,2]
[315209462,1708936239456,-500.0,0.00019178,2]
[315209463,1708936239465,-500.0,0.00019178,2]
[315209464,1708936239474,-500.0,0.00019178,2]
[315209465,1708936239483,-500.0,0.00019178,2]
[315209466,1708936239492,-501.16229543,0.00019178,2]
[315209467,1708936239603,-1260.89,0.00019178,2]
[315209468,1708936239613,-573.72782983,0.00019178,2]
[315209469,1708936239623,-500.0,0.00019178,2]
[315209470,1708936239633,-500.0,0.00019178,2]
[315209471,1708936239642,-268.97832651,0.00019178,2]
[315209472,1708936239651,-500.0,0.00019178,2]
[315209473,1708936239661,-2801.09,0.00019178,2]
[315209474,1708936239669,-500.0,0.00019178,2]
[315209475,1708936239679,-500.0,0.00019178,2]
[315209476,1708936239688,-500.0,0.00019178,2]
[315209477,1708936239696,-500.0,0.00019178,2]
[315209478,1708936239706,-500.20438763,0.00019178,2]
[315209479,1708936239715,-502.01865313,0.00019178,2]
[315209480,1708936239724,-4344.96,0.00019178,2]
[315209481,1708936239733,-500.0,0.00019178,2]
[315209482,1708936239742,-500.0,0.00019178,2]
[315209483,1708936239752,-2291.28,0.00019178,2]
[315209484,1708936239761,-500.0,0.00019178,2]
[315209485,1708936239770,-699.57,0.00019178,2]
[315209486,1708936239779,-500.0,0.00019178,2]
[315209487,1708936239787,-500.0,0.00019178,2]
[315209488,1708936239796,-500.0,0.00019178,2]
[315209489,1708936239806,-500.0,0.00019178,2]
[315209490,1708936239815,-500.0,0.00019178,2]
[315209491,1708936239824,-500.0,0.00019178,2]
[315209492,1708936239833,-500.0,0.00019178,2]
[315209493,1708936239842,-500.0,0.00019178,2]
[315209494,1708936239850,-625.93045909,0.00019178,2]
[315209495,1708936239860,-500.0,0.00019178,2]
[315209496,1708936239868,-500.0,0.00019178,2]
[315209497,1708936239878,-500.0,0.00019178,2]
[315209498,1708936239888,-500.0,0.00019178,2]
[315209499,1708936239897,-468.27333622,0.00019178,2]
[315209500,1708936239906,-866.2,0.00019178,2]
[315209501,1708936239914,-1799.84,0.00019178,2]
[315209502,1708936239923,-518.49613271,0.00019178,2]
[315209503,1708936239932,-500.0,0.00019178,2]
[315209504,1708936239941,-641.27,0.00019178,2]
[315209505,1708936239950,-641.27,0.00019178,2]
[315209506,1708936239959,-641.27,0.00019178,2]
[315209507,1708936239968,-641.27,0.00019178,2]
[315209508,1708936239977,-641.27,0.00019178,2]
[315209509,1708936239986,-2282.25,0.00019178,2]
[315209510,1708936239995,-2514.37,0.00019178,2]
[315209511,1708936240004,-500.0,0.00019178,2]
[315209512,1708936240013,-500.0,0.00019178,2]
[315209513,1708936240022,-500.0,0.00019178,2]
[315209514,1708936240031,-500.0,0.00019178,2]
[315209515,1708936240040,-8196.53,0.00019178,2]
[315209516,1708936240049,-500.0,0.00019178,2]
[315209517,1708936240057,-500.0,0.00019178,2]
[315209518,1708936240066,-500.0,0.00019178,2]
[315209519,1708936240075,-500.0,0.00019178,2]
[315209520,1708936240083,-868.21,0.00019178,2]
[315209521,1708936240092,-500.0,0.00019178,2]
[315209522,1708936240101,-500.0,0.00019178,2]
[315209523,1708936240110,-500.0,0.00019178,2]
[315209524,1708936240119,-500.0,0.00019178,2]
[315209525,1708936240128,-22658.04,0.00019178,2]
[315209526,1708936240137,-432.63229669,0.00019178,2]
[315209527,1708936240146,-500.0,0.00019178,2]
[315209528,1708936240155,-500.0,0.00019178,2]
[315209529,1708936240164,-1283.38,0.00019178,2]
[315209530,1708936240173,-3587.74,0.00019178,2]
[315209531,1708936240181,-608.21516121,0.00019178,2]
[315209532,1708936240190,-500.0,0.00019178,2]
[315209533,1708936240200,-500.0,0.00019178,2]
[315209534,1708936240209,-1691.94,0.00019178,2]
[315209535,1708936240218,-500.0,0.00019178,2]
[315209536,1708936240227,-500.0,0.00019178,2]
[315209537,1708936240235,-400.24472666,0.00019178,2]
[315209538,1708936240245,-166.333176,0.00019178,2]
[315209539,1708936240256,-166.666666,0.00019178,2]
[315209540,1708936240271,-172.93049177,0.00019352,2]
[315209541,1708936240280,-200.5826354,0.0001937,2]
[315209542,1708936240289,-153.0,0.000194,2]
[315209543,1708936240298,-306.1724424,0.000194,2]
[315209544,1708936240307,-153.0,0.000194,2]
[315209545,1708936240316,-455.1304468,0.000194,2]
[315209546,1708936240325,-153.0,0.000194,2]
[315209547,1708936240335,-306.0,0.000194,2]
[315209548,1708936240344,-153.0,0.000194,2]
[315209549,1708936240354,-153.0,0.000194,2]
[315209550,1708936240363,-153.0,0.000194,2]
[315209551,1708936240373,-153.0,0.000194,2]
[315209552,1708936240382,-153.0,0.000194,2]
[315209553,1708936240391,-153.0,0.000194,2]
[315209554,1708936240401,-153.0,0.000194,2]
[315209555,1708936240410,-153.0,0.000194,2]
[315209556,1708936240419,-227.9162986,0.000194,2]
[315209557,1708936240428,-153.0,0.000194,2]
[315209558,1708936240437,-153.0,0.000194,2]
[315209559,1708936240447,-153.0,0.000194,2]
[315209560,1708936240456,-153.0,0.000194,2]
[315209561,1708936240465,-200.5826354,0.000194,2]
[315209562,1708936240475,-153.0,0.000194,2]
[315209563,1708936240484,-153.0,0.000194,2]
[315209564,1708936240495,-641.27,0.00019451,2]
[315209565,1708936240504,-641.27,0.00019451,2]
[315209566,1708936240514,-641.27,0.00019451,2]
[315209567,1708936240523,-641.27,0.00019451,2]
[315209568,1708936240532,-502.11011131,0.00019452,2]
[315209569,1708936240541,-503.89798039,0.00019452,2]
[315209570,1708936240550,-728.38,0.00019452,2]
[315209571,1708936240559,-500.0,0.00019452,2]
[315209572,1708936240568,-500.0,0.00019452,2]
[315209573,1708936240577,-431.44487992,0.00019452,2]
[315209574,1708936240586,-500.0,0.00019452,2]
[315209575,1708936240595,-500.0,0.00019452,2]
[315209576,1708936240604,-580.4,0.00019452,2]
[315209577,1708936240613,-500.0,0.00019452,2]
[315209578,1708936240622,-500.0,0.00019452,2]
[315209579,1708936240631,-500.0,0.00019452,2]
[315209580,1708936240640,-503.86862046,0.00019452,2]
[315209581,1708936240649,-500.0,0.00019452,2]
[315209582,1708936240658,-500.0,0.00019452,2]
[315209583,1708936240667,-500.63508727,0.00019452,2]
[315209584,1708936240677,-500.0,0.00019452,2]
[315209585,1708936240686,-500.0,0.00019452,2]
[315209586,1708936240695,-500.0,0.00019452,2]
[315209587,1708936240704,-500.0,0.00019452,2]
[315209588,1708936240713,-500.0,0.00019452,2]
[315209589,1708936240722,-500.0,0.00019452,2]
[315209590,1708936240732,-500.0,0.00019452,2]
[315209591,1708936240741,-500.0,0.00019452,2]
[315209592,1708936240751,-500.0,0.00019452,2]
[315209593,1708936240761,-500.0,0.00019452,2]
[315209594,1708936240770,-500.0,0.00019452,2]
[315209595,1708936240780,-500.0,0.00019452,2]
[315209596,1708936240789,-500.0,0.00019452,2]
[315209597,1708936240799,-1527.13,0.00019452,2]
[315209598,1708936240808,-474.48126572,0.00019452,2]
[315209599,1708936240818,-530.06,0.00019452,2]
[315209600,1708936240828,-500.0,0.00019452,2]
[315209601,1708936240838,-1600.04,0.00019452,2]
[315209602,1708936240847,-624.92,0.00019452,2]
[315209603,1708936240857,-500.0,0.00019452,2]
[315209604,1708936240867,-500.0,0.00019452,2]
[315209605,1708936240877,-504.63239658,0.00019452,2]
[315209606,1708936240887,-1488.87,0.00019452,2]
[315209607,1708936240896,-833.88,0.00019452,2]
[315209608,1708936240905,-504.21335184,0.00019452,2]
[315209609,1708936240915,-500.0,0.00019452,2]
[315209610,1708936240923,-502.20415089,0.00019452,2]
[315209611,1708936240932,-500.0,0.00019452,2]
[315209612,1708936240942,-500.0,0.00019452,2]
[315209613,1708936240951,-500.0,0.00019452,2]
[315209614,1708936240960,-502.89262175,0.00019452,2]
[315209615,1708936240969,-500.0,0.00019452,2]
[315209616,1708936240978,-500.0,0.00019452,2]
[315209617,1708936240988,-500.0,0.00019452,2]
[315209618,1708936240997,-500.0,0.00019452,2]
[315209619,1708936241006,-500.0,0.00019452,2]
[315209620,1708936241015,-500.0,0.00019452,2]
[315209621,1708936241023,-500.0,0.00019452,2]
[315209622,1708936241032,-2093.75,0.00019452,2]
[315209623,1708936241041,-500.0,0.00019452,2]
[315209624,1708936241050,-500.79176669,0.00019452,2]
[315209625,1708936241060,-500.0,0.00019452,2]
[315209626,1708936241069,-500.0,0.00019452,2]
[315209627,1708936241078,-500.94944783,0.00019452,2]
[315209628,1708936241087,-500.0,0.00019452,2]